[Event "Esbjerg Efterår 2021 - Esbjergmesterskabet"]
[Site "Esbjerg, Denmark"]
[Date "2021.10.22"]
[Round "3.6"]
[White "Bekmuhanov, Sauran"]
[Black "Jarlnæs, Erik"]
[Result "0-1"]
[TimeControl "1.-3. 20 min + 5 sek, 4.-7. 90 min + 30 sek"]
[WhiteElo "1623"]
[BlackElo "1952"]

1. e4 {[%clk 00:20:09]} e6 {[%clk 00:20:08]} {[%emt 00:00:02]} 2. d4 {[%clk
00:20:12]} {[%emt 00:00:01]} d5 {[%clk 00:20:12]} 3. exd5 {[%clk 00:20:16]}
{[%emt 00:00:03]} exd5 {[%clk 00:20:16]} {[%emt 00:00:02]} 4. c4 {[%clk
00:20:20]} Nc6 {[%clk 00:17:33]} {[%emt 00:02:48]} 5. Nc3 {[%clk 00:20:12]}
{[%emt 00:00:13]} Bb4 {[%clk 00:16:11]} {[%emt 00:01:26]} 6. Nf3 {[%clk
00:19:29]} {[%emt 00:00:49]} Nge7 {[%clk 00:14:21]} {[%emt 00:01:55]} 7. a3
{[%clk 00:18:51]} {[%emt 00:00:43]} Bxc3+ {[%clk 00:13:59]} {[%emt 00:00:27]} 8.
bxc3 {[%clk 00:18:49]} {[%emt 00:00:06]} Bg4 {[%clk 00:13:13]} {[%emt
00:00:52]} 9. Bf4 {[%clk 00:18:11]} {[%emt 00:00:44]} h6 {[%clk 00:10:57]}
{[%emt 00:02:21]} 10. Bd3 {[%clk 00:17:29]} {[%emt 00:00:45]} O-O {[%clk
00:10:03]} {[%emt 00:01:00]} 11. O-O {[%clk 00:17:24]} {[%emt 00:00:10]} Ng6
{[%clk 00:08:17]} {[%emt 00:01:51]} 12. Bg3 {[%clk 00:17:10]} {[%emt 00:00:19]}
dxc4 {[%clk 00:05:52]} {[%emt 00:02:30]} 13. Bxc4 {[%clk 00:17:00]} {[%emt
00:00:14]} Na5 {[%clk 00:05:55]} {[%emt 00:00:02]} 14. Be2 {[%clk 00:16:48]}
{[%emt 00:00:17]} Re8 {[%clk 00:05:42]} {[%emt 00:00:18]} 15. Rb1 {[%clk
00:16:18]} {[%emt 00:00:35]} b6 {[%clk 00:05:26]} {[%emt 00:00:21]} 16. h3
{[%emt 00:00:25]} Bf5 {[%emt 00:00:16]} 17. Bd3 {[%clk 00:14:20]} {[%emt
00:01:22]} Qd7 {[%clk 00:05:00]} {[%emt 00:00:30]} 18. Qc2 {[%clk 00:09:40]}
{[%emt 00:04:47]} Bxd3 {[%clk 00:04:59]} {[%emt 00:00:04]} 19. Qxd3 {[%clk
00:09:43]} {[%emt 00:00:02]} c5 {[%clk 00:04:57]} {[%emt 00:00:08]} 20. Rfd1
{[%clk 00:08:54]} {[%emt 00:00:54]} cxd4 {[%clk 00:04:36]} {[%emt 00:00:26]} 21.
cxd4 {[%clk 00:08:32]} {[%emt 00:00:26]} Rac8 {[%clk 00:04:13]} {[%emt
00:00:28]} 22. d5 {[%clk 00:07:55]} {[%emt 00:00:42]} Nb7 {[%clk 00:03:40]}
{[%emt 00:00:39]} 23. Rbc1 {[%clk 00:06:03]} {[%emt 00:01:58]} Nc5 {[%clk
00:03:41]} {[%emt 00:00:03]} 24. Qb1 {[%clk 00:05:28]} {[%emt 00:00:40]} Rcd8
{[%clk 00:03:42]} {[%emt 00:00:03]} 25. Qb4 {[%clk 00:04:36]} {[%emt 00:00:58]}
Qf5 {[%clk 00:03:28]} {[%emt 00:00:18]} 26. Qc4 {[%clk 00:03:24]} {[%emt
00:01:18]} Re4 {[%clk 00:03:07]} {[%emt 00:00:26]} 27. Qa2 {[%clk 00:03:11]}
{[%emt 00:00:18]} Nf4 {[%clk 00:02:28]} {[%emt 00:00:43]} 28. Rc2 {[%clk
00:01:06]} {[%emt 00:02:09]} Nfd3 {[%emt 00:00:32]} 29. Bc7 {[%clk 00:00:38]}
{[%emt 00:00:17]} Rxd5 {[%clk 00:02:15]} {[%emt 00:00:09]} 30. Re2 {[%clk
00:00:13]} {[%emt 00:00:29]} Rxe2 {[%clk 00:02:06]} {[%emt 00:00:15]} 31. Qxe2
{[%clk 00:00:13]} {[%emt 00:00:05]} Qd7 {[%clk 00:02:07]} {[%emt 00:00:05]} 32.
Bg3 {[%clk 00:00:13]} {[%emt 00:00:04]} Ne6 {[%clk 00:01:45]} {[%emt 00:00:27]}
33. Kh2 {[%clk 00:00:08]} {[%emt 00:00:10]} Ndf4 {[%clk 00:01:23]} {[%emt
00:00:27]} 34. Rxd5 {[%clk 00:00:08]} {[%emt 00:00:05]} Qxd5 {[%clk 00:01:13]}
{[%emt 00:00:15]} 35. Bxf4 {[%clk 00:00:11]} {[%emt 00:00:02]} Nxf4 {[%clk
00:01:16]} {[%emt 00:00:02]} 36. Qe8+ {[%clk 00:00:13]} {[%emt 00:00:03]} Kh7
{[%clk 00:01:19]} {[%emt 00:00:02]} 37. Qe7 {[%clk 00:00:13]} {[%emt 00:00:06]}
a5 {[%clk 00:00:44]} {[%emt 00:00:39]} 38. Qc7 {[%clk 00:00:08]} {[%emt
00:00:10]} Nd3 {[%clk 00:00:38]} {[%emt 00:00:11]} 39. Qxb6 {[%clk 00:00:10]}
{[%emt 00:00:03]} Ne5 {[%clk 00:00:33]} {[%emt 00:00:10]} 40. Qb2 {[%clk
00:00:09]} {[%emt 00:00:06]} Nxf3+ {[%clk 00:00:35]} {[%emt 00:00:03]} 41. gxf3
{[%clk 00:00:11]} {[%emt 00:00:03]} Qxf3 {[%clk 00:00:38]} {[%emt 00:00:02]} 42.
Qc2+ {[%clk 00:00:14]} {[%emt 00:00:02]} g6 {[%clk 00:00:41]} {[%emt 00:00:03]}
43. Qa2 {[%clk 00:00:15]} {[%emt 00:00:03]} Qf4+ {[%clk 00:00:44]} {[%emt
00:00:03]} 44. Kg2 {[%clk 00:00:19]} Kg7 {[%clk 00:00:48]} {[%emt 00:00:01]} 45.
f3 {[%clk 00:00:22]} {[%emt 00:00:02]} a4 {[%clk 00:00:48]} {[%emt 00:00:05]}
46. Qc2 {[%clk 00:00:23]} {[%emt 00:00:04]} h5 {[%clk 00:00:48]} {[%emt
00:00:05]} 47. Qb2+ {[%clk 00:00:24]} {[%emt 00:00:04]} Kh7 {[%clk 00:00:51]}
{[%emt 00:00:02]} 48. Qc2 {[%clk 00:00:28]} {[%emt 00:00:02]} h4 {[%clk
00:00:53]} {[%emt 00:00:02]} 49. Qf2 {[%clk 00:00:29]} {[%emt 00:00:04]} g5
{[%clk 00:00:53]} {[%emt 00:00:05]} 50. Qe1 {[%clk 00:00:33]} Kh6 {[%clk
00:00:53]} {[%emt 00:00:05]} 51. Qf2 {[%clk 00:00:19]} {[%emt 00:00:20]} f6
{[%clk 00:00:51]} {[%emt 00:00:07]} 52. Qe1 {[%clk 00:00:23]} {[%emt 00:00:02]}
Kg6 {[%clk 00:00:49]} {[%emt 00:00:07]} 53. Qb1+ {[%clk 00:00:23]} {[%emt
00:00:04]} Qf5 {[%clk 00:00:49]} {[%emt 00:00:05]} 54. Qd1 {[%clk 00:00:19]}
{[%emt 00:00:08]} Qb5 {[%clk 00:00:49]} {[%emt 00:00:06]} 55. Qc2+ {[%clk
00:00:18]} {[%emt 00:00:07]} Kh6 {[%clk 00:00:51]} {[%emt 00:00:03]} 56. Qd2
{[%clk 00:00:06]} {[%emt 00:00:17]} Qb3 {[%clk 00:00:50]} {[%emt 00:00:06]} 57.
Qc1 {[%clk 00:00:10]} {[%emt 00:00:01]} Qa2+ {[%clk 00:00:51]} {[%emt
00:00:04]} 58. Kg1 {[%clk 00:00:13]} {[%emt 00:00:02]} Qe2 {[%clk 00:00:49]}
{[%emt 00:00:07]} 59. Qa1 {[%clk 00:00:07]} {[%emt 00:00:11]} Qxf3 {[%clk
00:00:46]} {[%emt 00:00:07]} 60. Kh2 {[%clk 00:00:07]} {[%emt 00:00:05]} Qf2+
{[%clk 00:00:45]} {[%emt 00:00:06]} 61. Kh1 {[%clk 00:00:11]} {[%emt 00:00:01]}
Kg6 {[%clk 00:00:45]} {[%emt 00:00:05]} 62. Qb1+ {[%clk 00:00:14]} {[%emt
00:00:02]} Qf5 {[%clk 00:00:48]} {[%emt 00:00:01]} 63. Qa1 {[%clk 00:00:18]}
{[%emt 00:00:02]} Qxh3+ {[%clk 00:00:51]} {[%emt 00:00:02]} 64. Qd1 {[%emt
00:00:15]} 0-1

[Event "Esbjerg Efterår 2021 - Esbjergmesterskabet"]
[Site "Esbjerg, Denmark"]
[Date "2021.10.22"]
[Round "3.7"]
[White "Jensen, Lars"]
[Black "Vinther, Christoffer"]
[Result "1-0"]
[TimeControl "1.-3. 20 min + 5 sek, 4.-7. 90 min + 30 sek"]
[WhiteElo "1546"]
[BlackElo "1607"]

1. e4 {[%clk 00:20:09]} c5 {[%clk 00:20:06]} {[%emt 00:00:04]} 2. Nc3 {[%clk
00:20:10]} {[%emt 00:00:04]} Nc6 {[%clk 00:19:58]} {[%emt 00:00:14]} 3. f4
{[%clk 00:20:11]} {[%emt 00:00:04]} e6 {[%clk 00:19:50]} {[%emt 00:00:12]} 4.
Nf3 {[%clk 00:20:10]} {[%emt 00:00:06]} a6 {[%clk 00:19:45]} {[%emt 00:00:11]}
5. Be2 {[%clk 00:20:02]} {[%emt 00:00:12]} b5 {[%clk 00:19:18]} {[%emt
00:00:32]} 6. O-O {[%clk 00:19:36]} {[%emt 00:00:31]} Nf6 {[%clk 00:18:44]}
{[%emt 00:00:38]} 7. d3 {[%clk 00:19:17]} {[%emt 00:00:25]} Be7 {[%clk
00:18:32]} {[%emt 00:00:17]} 8. Qe1 {[%clk 00:19:16]} {[%emt 00:00:06]} O-O
{[%clk 00:18:13]} {[%emt 00:00:23]} 9. Qg3 {[%clk 00:17:32]} {[%emt 00:01:50]}
d5 {[%clk 00:17:22]} {[%emt 00:00:55]} 10. e5 {[%clk 00:16:44]} {[%emt
00:00:53]} Nd7 {[%clk 00:16:33]} {[%emt 00:00:54]} 11. Nd1 {[%clk 00:16:05]}
{[%emt 00:00:44]} Bb7 {[%clk 00:13:51]} {[%emt 00:02:47]} 12. Ne3 {[%clk
00:15:42]} {[%emt 00:00:28]} d4 {[%clk 00:12:35]} {[%emt 00:01:21]} 13. Ng4
{[%clk 00:15:41]} {[%emt 00:00:06]} Nb4 {[%clk 00:11:44]} {[%emt 00:00:56]} 14.
Bd1 {[%clk 00:15:24]} {[%emt 00:00:22]} f6 {[%clk 00:11:13]} {[%emt 00:00:36]}
15. Nh6+ {[%clk 00:14:13]} {[%emt 00:01:16]} Kh8 {[%clk 00:11:05]} {[%emt
00:00:12]} 16. exf6 {[%clk 00:14:11]} {[%emt 00:00:05]} Rxf6 {[%clk 00:10:29]}
{[%emt 00:00:44]} 17. Ng4 {[%clk 00:14:06]} {[%emt 00:00:11]} Rg6 {[%clk
00:10:24]} {[%emt 00:00:09]} 18. Re1 {[%clk 00:13:06]} {[%emt 00:01:05]} Nf6
{[%clk 00:09:51]} {[%emt 00:00:38]} 19. Nfe5 {[%clk 00:12:59]} {[%emt
00:00:13]} Qd5 {[%clk 00:05:15]} {[%emt 00:04:40]} 20. Nxg6+ {[%clk 00:12:32]}
{[%emt 00:00:32]} hxg6 {[%clk 00:05:14]} {[%emt 00:00:05]} 21. Nxf6 {[%clk
00:10:49]} {[%emt 00:01:49]} 1-0

[Event "Esbjerg Efterår 2021 - Esbjergmesterskabet"]
[Site "Esbjerg, Denmark"]
[Date "2021.10.22"]
[Round "3.8"]
[White "Christensen, Joel Nødskov"]
[Black "Schou-Jørgensen, Jan"]
[Result "1/2-1/2"]
[TimeControl "1.-3. 20 min + 5 sek, 4.-7. 90 min + 30 sek"]
[WhiteElo "1404"]
[BlackElo "1722"]

1. d4 {[%clk 00:20:07]} {[%emt 00:00:02]} d5 {[%clk 00:20:07]} {[%emt
00:00:03]} 2. e3 {[%clk 00:20:09]} {[%emt 00:00:03]} Nf6 {[%clk 00:19:44]}
{[%emt 00:00:28]} 3. c4 {[%clk 00:20:11]} {[%emt 00:00:04]} c6 {[%clk
00:19:41]} {[%emt 00:00:08]} 4. Nc3 {[%clk 00:20:13]} {[%emt 00:00:02]} Bf5
{[%clk 00:19:37]} {[%emt 00:00:10]} 5. Nf3 {[%clk 00:20:08]} {[%emt 00:00:10]}
e6 {[%clk 00:19:32]} {[%emt 00:00:09]} 6. a3 {[%clk 00:20:10]} {[%emt
00:00:04]} Nbd7 {[%clk 00:19:33]} {[%emt 00:00:04]} 7. cxd5 {[%clk 00:20:10]}
{[%emt 00:00:05]} exd5 {[%clk 00:19:34]} {[%emt 00:00:04]} 8. Bd3 {[%clk
00:20:12]} {[%emt 00:00:03]} Bg6 {[%clk 00:19:28]} {[%emt 00:00:10]} 9. Qc2
{[%clk 00:20:15]} {[%emt 00:00:03]} Bd6 {[%clk 00:18:55]} {[%emt 00:00:38]} 10.
O-O {[%clk 00:20:16]} {[%emt 00:00:04]} O-O {[%clk 00:18:46]} {[%emt 00:00:14]}
11. h3 {[%clk 00:20:15]} {[%emt 00:00:05]} Re8 {[%clk 00:18:29]} {[%emt
00:00:23]} 12. Bxg6 {[%clk 00:20:09]} {[%emt 00:00:11]} hxg6 {[%clk 00:18:27]}
{[%emt 00:00:07]} 13. b4 {[%clk 00:20:10]} {[%emt 00:00:04]} a5 {[%clk
00:17:17]} {[%emt 00:01:16]} 14. Bb2 {[%clk 00:20:06]} {[%emt 00:00:08]} axb4
{[%clk 00:17:15]} {[%emt 00:00:07]} 15. axb4 {[%clk 00:20:09]} {[%emt
00:00:01]} Bxb4 {[%clk 00:17:18]} {[%emt 00:00:03]} 16. Qb3 {[%clk 00:20:00]}
{[%emt 00:00:14]} Bxc3 {[%clk 00:17:15]} {[%emt 00:00:08]} 17. Bxc3 {[%clk
00:20:03]} {[%emt 00:00:02]} Qb6 {[%clk 00:17:19]} {[%emt 00:00:01]} 18. Qc2
{[%clk 00:20:04]} {[%emt 00:00:04]} Ne4 {[%clk 00:17:13]} {[%emt 00:00:11]} 19.
Rab1 {[%clk 00:20:05]} {[%emt 00:00:04]} Qc7 {[%clk 00:17:00]} {[%emt
00:00:18]} 20. Rb2 {[%clk 00:19:51]} {[%emt 00:00:18]} Ra3 {[%clk 00:15:59]}
{[%emt 00:01:07]} 21. Bb4 {[%clk 00:19:55]} {[%emt 00:00:01]} Ra6 {[%clk
00:15:01]} {[%emt 00:01:03]} 22. Rfb1 {[%clk 00:19:56]} {[%emt 00:00:03]} Rea8
{[%clk 00:14:30]} {[%emt 00:00:36]} 23. Bc3 {[%clk 00:19:45]} {[%emt 00:00:17]}
b5 {[%clk 00:13:56]} {[%emt 00:00:39]} 24. Bb4 {[%clk 00:19:40]} {[%emt
00:00:09]} Nb6 {[%clk 00:13:38]} {[%emt 00:00:24]} 25. Ne5 {[%clk 00:19:14]}
{[%emt 00:00:31]} Nc4 {[%clk 00:13:29]} {[%emt 00:00:14]} 26. Nxc4 {[%clk
00:19:12]} {[%emt 00:00:06]} bxc4 {[%clk 00:13:29]} {[%emt 00:00:06]} 27. Be1
{[%clk 00:19:02]} {[%emt 00:00:14]} R6a7 {[%clk 00:12:49]} {[%emt 00:00:46]} 28.
f3 {[%clk 00:18:39]} {[%emt 00:00:27]} Nd6 {[%clk 00:12:36]} {[%emt 00:00:19]}
29. Bb4 {[%clk 00:18:29]} {[%emt 00:00:15]} Nb5 {[%clk 00:12:32]} {[%emt
00:00:09]} 30. Bc5 {[%clk 00:18:28]} {[%emt 00:00:06]} Ra1 {[%clk 00:13:33]}
{[%emt 00:04:59]} 31. Kf2 {[%emt 00:00:28]} Rxb1 {[%emt 00:00:31]} 32. Rxb1
{[%clk 00:18:12]} {[%emt 00:00:10]} Qa5 {[%clk 00:12:38]} {[%emt 00:00:26]} 33.
Bb4 {[%clk 00:18:08]} {[%emt 00:00:11]} Qa4 {[%clk 00:12:31]} {[%emt 00:00:12]}
34. Rb2 {[%clk 00:17:53]} {[%emt 00:00:20]} Qxc2+ {[%clk 00:12:08]} {[%emt
00:00:28]} 35. Rxc2 {[%clk 00:17:56]} Ra4 {[%clk 00:12:07]} {[%emt 00:00:08]}
36. Bc5 {[%clk 00:17:56]} {[%emt 00:00:05]} c3 {[%clk 00:10:53]} {[%emt
00:01:18]} 37. Kg3 {[%clk 00:17:45]} {[%emt 00:00:17]} Rc4 {[%clk 00:09:37]}
{[%emt 00:01:21]} 38. h4 {[%clk 00:17:32]} {[%emt 00:00:18]} Nc7 {[%clk
00:09:10]} {[%emt 00:00:32]} 39. Bb6 {[%clk 00:17:26]} {[%emt 00:00:10]} Ne6
{[%clk 00:09:02]} {[%emt 00:00:14]} 40. Ba5 {[%clk 00:17:22]} {[%emt 00:00:08]}
c5 {[%clk 00:08:31]} {[%emt 00:00:36]} 41. dxc5 {[%clk 00:17:10]} {[%emt
00:00:18]} Rxc5 {[%clk 00:08:21]} {[%emt 00:00:14]} 42. Bb6 {[%clk 00:17:00]}
{[%emt 00:00:15]} Rb5 {[%clk 00:07:08]} {[%emt 00:01:19]} 43. Ba7 {[%clk
00:16:55]} {[%emt 00:00:09]} Rb3 {[%clk 00:07:06]} {[%emt 00:00:08]} 44. f4
{[%clk 00:16:41]} {[%emt 00:00:19]} f5 {[%clk 00:07:01]} {[%emt 00:00:10]} 45.
Kf3 {[%clk 00:16:39]} {[%emt 00:00:07]} Nc7 {[%clk 00:06:55]} {[%emt 00:00:12]}
46. Bd4 {[%clk 00:16:35]} {[%emt 00:00:08]} Nb5 {[%clk 00:06:59]} {[%emt
00:00:02]} 47. Bc5 {[%clk 00:16:16]} {[%emt 00:00:24]} Rb2 {[%clk 00:06:57]}
{[%emt 00:00:06]} 48. Rc1 {[%clk 00:16:07]} {[%emt 00:00:13]} c2 {[%clk
00:06:50]} {[%emt 00:00:12]} 49. g3 {[%clk 00:16:08]} {[%emt 00:00:04]} Nc3
{[%clk 00:06:51]} {[%emt 00:00:04]} 50. Bd4 {[%clk 00:16:05]} {[%emt 00:00:08]}
Rb3 {[%clk 00:05:43]} {[%emt 00:01:13]} 51. Rxc2 {[%clk 00:16:05]} {[%emt
00:00:03]} Ne4 {[%clk 00:05:18]} {[%emt 00:00:31]} 52. Rc8+ {[%clk 00:15:42]}
{[%emt 00:00:28]} Kf7 {[%clk 00:05:19]} {[%emt 00:00:04]} 53. Rc7+ {[%clk
00:15:45]} {[%emt 00:00:02]} Ke6 {[%clk 00:05:23]} {[%emt 00:00:02]} 54. Rxg7
{[%clk 00:15:41]} {[%emt 00:00:09]} Rb1 {[%clk 00:05:10]} {[%emt 00:00:17]} 55.
Rxg6+ {[%clk 00:15:32]} {[%emt 00:00:14]} Kd7 {[%clk 00:05:09]} {[%emt
00:00:06]} 56. Rb6 {[%clk 00:15:33]} {[%emt 00:00:04]} Rf1+ {[%clk 00:05:10]}
{[%emt 00:00:05]} 57. Kg2 {[%clk 00:15:21]} {[%emt 00:00:16]} Rf2+ {[%clk
00:05:02]} {[%emt 00:00:13]} 58. Kh3 {[%clk 00:15:19]} {[%emt 00:00:06]} Rf3
{[%clk 00:05:01]} {[%emt 00:00:07]} 59. Rb7+ {[%clk 00:15:15]} {[%emt
00:00:08]} Kc6 {[%clk 00:05:05]} {[%emt 00:00:02]} 60. Rg7 {[%clk 00:15:17]}
{[%emt 00:00:03]} Kb5 {[%clk 00:03:28]} {[%emt 00:01:42]} 61. h5 {[%clk
00:15:20]} {[%emt 00:00:01]} Rf1 {[%clk 00:03:25]} {[%emt 00:00:09]} 62. Kg2
{[%clk 00:15:20]} {[%emt 00:00:05]} Rf2+ {[%clk 00:03:28]} {[%emt 00:00:02]} 63.
Kh3 {[%clk 00:15:19]} {[%emt 00:00:06]} Rf1 {[%clk 00:03:32]} {[%emt 00:00:01]}
64. Kg2 {[%clk 00:15:22]} {[%emt 00:00:01]} Rf2+ {[%emt 00:00:02]} 1/2-1/2

[Event "Esbjerg Efterår 2021 - Esbjergmesterskabet"]
[Site "Esbjerg, Denmark"]
[Date "2021.10.22"]
[Round "3.9"]
[White "Dybdal, Frank"]
[Black "Pommerencke, Lars"]
[Result "1-0"]
[TimeControl "1.-3. 20 min + 5 sek, 4.-7. 90 min + 30 sek"]
[WhiteElo "1687"]
[BlackElo "1630"]

1. c4 {[%clk 00:20:05]} {[%emt 00:00:04]} c5 {[%clk 00:19:48]} {[%emt
00:00:24]} 2. Nc3 {[%clk 00:20:06]} {[%emt 00:00:03]} Nc6 {[%clk 00:19:44]}
{[%emt 00:00:09]} 3. e4 {[%clk 00:20:06]} {[%emt 00:00:05]} d6 {[%clk
00:19:29]} {[%emt 00:00:20]} 4. g3 {[%clk 00:19:54]} {[%emt 00:00:16]} Nf6
{[%clk 00:19:14]} {[%emt 00:00:21]} 5. Bg2 {[%clk 00:19:47]} {[%emt 00:00:12]}
Bg4 {[%clk 00:18:52]} {[%emt 00:00:27]} 6. f3 {[%clk 00:19:32]} {[%emt
00:00:19]} Bh5 {[%clk 00:18:46]} {[%emt 00:00:12]} 7. Nge2 {[%clk 00:19:30]}
{[%emt 00:00:06]} e6 {[%clk 00:18:18]} {[%emt 00:00:33]} 8. O-O {[%clk
00:19:01]} {[%emt 00:00:34]} Be7 {[%clk 00:18:17]} {[%emt 00:00:06]} 9. Nf4
{[%clk 00:15:18]} {[%emt 00:03:48]} Bg6 {[%clk 00:17:04]} {[%emt 00:01:18]} 10.
Nce2 {[%clk 00:14:53]} {[%emt 00:00:29]} Nh5 {[%clk 00:15:34]} {[%emt
00:01:36]} 11. d3 {[%clk 00:12:04]} {[%emt 00:02:54]} Bf6 {[%clk 00:15:07]}
{[%emt 00:00:32]} 12. Rb1 {[%clk 00:11:43]} {[%emt 00:00:26]} Nxf4 {[%clk
00:14:25]} {[%emt 00:00:48]} 13. Bxf4 {[%clk 00:11:30]} {[%emt 00:00:17]} Nd4
{[%clk 00:13:57]} {[%emt 00:00:33]} 14. Nc3 {[%clk 00:10:48]} {[%emt 00:00:47]}
h5 {[%clk 00:13:34]} {[%emt 00:00:27]} 15. Be3 {[%clk 00:10:15]} {[%emt
00:00:38]} a6 {[%clk 00:12:58]} {[%emt 00:00:41]} 16. f4 {[%clk 00:09:47]}
{[%emt 00:00:34]} Rb8 {[%clk 00:09:54]} {[%emt 00:03:08]} 17. Ne2 {[%clk
00:08:42]} {[%emt 00:01:11]} h4 {[%clk 00:08:55]} {[%emt 00:01:04]} 18. g4
{[%clk 00:08:30]} {[%emt 00:00:17]} h3 {[%clk 00:08:36]} {[%emt 00:00:24]} 19.
Bh1 {[%clk 00:08:33]} {[%emt 00:00:02]} Nxe2+ {[%clk 00:07:45]} {[%emt
00:00:56]} 20. Qxe2 {[%clk 00:08:33]} {[%emt 00:00:05]} Bd4 {[%clk 00:07:33]}
{[%emt 00:00:16]} 21. Bxd4 {[%clk 00:07:57]} {[%emt 00:00:42]} cxd4 {[%clk
00:07:37]} {[%emt 00:00:02]} 22. b4 {[%clk 00:07:26]} {[%emt 00:00:34]} Qh4
{[%clk 00:05:32]} {[%emt 00:02:11]} 23. Bf3 {[%clk 00:06:59]} {[%emt 00:00:32]}
Kd7 {[%clk 00:05:13]} {[%emt 00:00:25]} 24. a4 {[%clk 00:06:47]} {[%emt
00:00:17]} f5 {[%clk 00:05:09]} {[%emt 00:00:09]} 25. a5 {[%clk 00:05:35]}
{[%emt 00:01:16]} fxg4 {[%clk 00:05:02]} {[%emt 00:00:11]} 26. Bxg4 {[%clk
00:05:37]} {[%emt 00:00:03]} Bh5 {[%clk 00:04:51]} {[%emt 00:00:17]} 27. Bxh5
{[%clk 00:05:16]} {[%emt 00:00:25]} Rxh5 {[%clk 00:04:55]} {[%emt 00:00:01]} 28.
Qf2 {[%clk 00:04:40]} {[%emt 00:00:42]} Qf6 {[%clk 00:04:19]} {[%emt 00:00:42]}
29. Rbe1 {[%clk 00:04:28]} {[%emt 00:00:16]} Rf8 {[%clk 00:03:23]} {[%emt
00:01:02]} 30. Qf3 {[%clk 00:04:15]} {[%emt 00:00:17]} Rh6 {[%clk 00:03:20]}
{[%emt 00:00:06]} 31. e5 {[%clk 00:04:05]} {[%emt 00:00:16]} dxe5 {[%clk
00:03:16]} {[%emt 00:00:10]} 32. Qxb7+ {[%clk 00:04:01]} {[%emt 00:00:09]} Ke8
{[%clk 00:03:16]} {[%emt 00:00:05]} 33. Rxe5 {[%clk 00:03:37]} {[%emt
00:00:28]} Rg6+ {[%clk 00:03:15]} {[%emt 00:00:06]} 34. Kh1 {[%clk 00:03:26]}
{[%emt 00:00:17]} Qxe5 {[%clk 00:03:07]} {[%emt 00:00:14]} 35. Qc8+ {[%clk
00:03:19]} {[%emt 00:00:11]} Ke7 {[%clk 00:03:08]} {[%emt 00:00:04]} 36. Qxf8+
{[%clk 00:03:19]} {[%emt 00:00:04]} Kxf8 {[%clk 00:03:10]} {[%emt 00:00:04]} 37.
fxe5+ {[%emt 00:00:03]} Ke7 {[%clk 00:03:13]} 38. Rf3 {[%clk 00:03:06]} {[%emt
00:00:21]} Rg5 {[%clk 00:03:12]} {[%emt 00:00:06]} 39. Rxh3 {[%clk 00:03:07]}
{[%emt 00:00:03]} Rxe5 {[%clk 00:03:15]} {[%emt 00:00:02]} 40. Rg3 {[%clk
00:03:00]} {[%emt 00:00:12]} Kf7 {[%clk 00:03:18]} {[%emt 00:00:03]} 41. c5
{[%clk 00:02:53]} {[%emt 00:00:12]} Re1+ {[%clk 00:03:18]} {[%emt 00:00:05]} 42.
Kg2 {[%clk 00:02:56]} {[%emt 00:00:02]} Rb1 {[%clk 00:03:21]} {[%emt 00:00:02]}
43. Kf3 {[%clk 00:02:41]} {[%emt 00:00:20]} Rxb4 {[%clk 00:03:24]} {[%emt
00:00:02]} 44. Ke4 {[%clk 00:02:44]} {[%emt 00:00:02]} Ra4 {[%clk 00:03:17]}
{[%emt 00:00:13]} 45. c6 {[%clk 00:02:38]} {[%emt 00:00:10]} Rxa5 {[%clk
00:03:12]} {[%emt 00:00:10]} 46. Kxd4 {[%clk 00:02:41]} {[%emt 00:00:02]} Rd5+
{[%clk 00:03:13]} {[%emt 00:00:05]} 47. Kc4 {[%clk 00:02:38]} {[%emt 00:00:07]}
Rd8 {[%clk 00:03:16]} {[%emt 00:00:01]} 48. d4 {[%clk 00:02:34]} {[%emt
00:00:10]} Rc8 {[%clk 00:03:19]} {[%emt 00:00:02]} 49. Kc5 {[%clk 00:02:38]}
{[%emt 00:00:02]} a5 {[%clk 00:03:23]} {[%emt 00:00:02]} 50. Ra3 {[%clk
00:02:39]} {[%emt 00:00:03]} Kf6 {[%clk 00:03:23]} {[%emt 00:00:05]} 51. Rxa5
{[%clk 00:02:41]} {[%emt 00:00:02]} g5 {[%clk 00:03:27]} {[%emt 00:00:02]} 52.
Ra3 {[%clk 00:02:29]} {[%emt 00:00:17]} Kf5 {[%clk 00:03:24]} {[%emt 00:00:08]}
53. Kb6 {[%clk 00:02:28]} {[%emt 00:00:06]} Ke4 {[%clk 00:03:27]} {[%emt
00:00:02]} 54. Kb7 {[%clk 00:02:25]} {[%emt 00:00:08]} Rh8 {[%clk 00:03:28]}
{[%emt 00:00:04]} 55. Ra2 {[%clk 00:02:28]} {[%emt 00:00:03]} Kxd4 {[%clk
00:03:30]} {[%emt 00:00:02]} 56. c7 {[%clk 00:02:32]} {[%emt 00:00:01]} Ke4
{[%clk 00:03:33]} {[%emt 00:00:03]} 57. c8=Q {[%clk 00:02:34]} {[%emt
00:00:02]} Rxc8 {[%clk 00:03:37]} {[%emt 00:00:02]} 58. Kxc8 {[%clk 00:02:36]}
{[%emt 00:00:02]} e5 {[%clk 00:03:41]} {[%emt 00:00:01]} 59. Kd7 {[%clk
00:02:34]} {[%emt 00:00:08]} Kf3 {[%clk 00:03:44]} {[%emt 00:00:01]} 60. Ke6
{[%clk 00:02:34]} {[%emt 00:00:05]} e4 {[%clk 00:03:48]} {[%emt 00:00:01]} 61.
Kf5 {[%clk 00:02:36]} {[%emt 00:00:03]} g4 {[%clk 00:03:49]} {[%emt 00:00:05]}
62. Ra3+ {[%clk 00:02:22]} {[%emt 00:00:19]} e3 {[%clk 00:03:53]} 63. Rxe3+
{[%clk 00:02:25]} {[%emt 00:00:01]} Kxe3 {[%clk 00:03:56]} {[%emt 00:00:01]} 64.
Kxg4 {[%clk 00:02:29]} {[%emt 00:00:02]} Ke4 {[%clk 00:04:00]} 65. h4 {[%clk
00:02:32]} {[%emt 00:00:01]} Ke5 {[%clk 00:04:04]} {[%emt 00:00:02]} 66. Kg5
{[%clk 00:02:37]} Ke6 {[%clk 00:04:08]} {[%emt 00:00:02]} 67. Kg6 {[%clk
00:02:41]} Ke7 {[%clk 00:04:12]} 68. Kg7 {[%clk 00:02:45]} 1-0